[Event "3rd elllobregat Open 2022"]
[Site "Baix Llobregat"]
[Date "2022.11.30"]
[Round "1.9"]
[White "Tabatabaei, M. Amin"]
[Black "Peelen, Piet"]
[Result "1-0"]
[ECO "B12"]
[WhiteElo "2655"]
[BlackElo "2350"]
[Annotator "TA"]
[PlyCount "75"]
[EventDate "2022.11.30"]
[EventType "swiss"]
[EventCountry "ESP"]
[SourceTitle "playchess.com"]
[Source "ChessBase"]
[SourceQuality "1"]
[TimeControl "40/5400+30:1800+30"]

{[%evp 13,75,19,26,18,39,41,50,50,51,41,70,33,56,28,16,27,28,26,24,7,114,104,127,118,136,84,84,79,69,70,79,77,78,66,66,66,66,66,66,66,66,53,54,53,53,53,119,53,64,53,53,53,60,53,53,53,53,53,64,86,543,535,867,797]} 1. e4 {[%emt 0:10:09]} c6 {[%emt 0:00:06]} 2. d4 {[%emt 0:00:09]} d5 {[%emt 0:00:04]} 3. e5 {[%emt 0:00:07]} Bf5 {[%emt 0:00:05]} 4. Nf3 {[%emt 0:00:06]} e6 {[%emt 0:00:05]} 5. Be2 {[%emt 0:00:06]} Nd7 {[%emt 0:01:46]} 6. O-O {[%emt 0:01:43]} Ne7 {[%emt 0:00:04]} 7. c3 {[%emt 0:00:10]} h6 {[%emt 0:04:40]} 8. a4 {[%emt 0:03:42] B12: Caro-Kann: Advance Variation.} a5 {[%emt 0:15:20] 8...Qc7 is a critical line.} 9. Na3 {[%emt 0:03:00][%cal Bb1a3,Ba3c2,Bc2e3][%mdl 32]} g5 {[%emt 0:14:11]} 10. Nc2 {[%emt 0:02:26] White is slightly better.} Bg7 {[%emt 0:02:36]} 11. Ne3 {[%emt 0:09:03]} Bg6 {[%emt 0:03:33]} 12. b4 {[%emt 0:06:44] [#]} Nf5 $146 {[%emt 0:13:28]} ({Predecessor:} 12... O-O 13. Ba3 f6 14. exf6 Bxf6 15. Ng4 Bg7 16. b5 Bh5 17. Nge5 Nxe5 18. Nxe5 Bxe2 19. Qxe2 {1-0 (48) Allahverdiyeva,A (2120)-Uzuner,T (1869) Chess.com INT 2022}) 13. Bd3 {[%emt 0:05:15]} Nxe3 {[%emt 0:02:31]} 14. Bxe3 {[%emt 0:00:22]} Bxd3 {[%emt 0:16:31]} 15. Qxd3 {[%emt 0:00:11]} O-O {[%emt 0:00:07]} 16. Rfb1 {[%emt 0:03:28]} f6 {[%emt 0:06:40] [#]} (16... axb4 $11 17. Rxb4 b6) 17. exf6 $1 $16 {[%emt 0:01:43] White is more active.} Qxf6 {[%emt 0:00:52]} 18. bxa5 {[%emt 0:00:12]} e5 {[%emt 0:04:37] ...e4 is the strong threat.} 19. dxe5 {[%emt 0:18:47]} ({White should play} 19. Rxb7 {Threatens to win with dxe5.} e4 20. Qd1) 19... Nxe5 {[%emt 0:00:01]} 20. Nxe5 {[%emt 0:00:09]} Qxe5 {[%emt 0:00:01]} 21. Bd4 {[%emt 0:07:30]} ({Reject} 21. Rxb7 $6 Qxc3 22. Qxc3 Bxc3 $11) 21... Qe7 {[%emt 0:00:36]} 22. Qg6 {[%emt 0:00:54]} Rxa5 {[%emt 0:00:56]} 23. h3 {[%emt 0:02:52]} (23. f3 {simplifies} Qf7 24. Qxg7+ Qxg7 25. Bxg7 Kxg7 26. Rxb7+ Kg6 27. Rb6) 23... Qf7 {[%emt 0:11:16]} 24. Qxg7+ {[%emt 0:00:22]} Qxg7 {[%emt 0:00:02]} 25. Bxg7 {[%emt 0:00:08]} Kxg7 {[%emt 0:00:02]} 26. Rxb7+ {[%emt 0:00:11]} Rf7 {[%emt 0:00:43]} 27. Rxf7+ {[%emt 0:02:03]} Kxf7 $14 {[%emt 0:00:01][%mdl 4096] Endgame KR-KR} 28. Kf1 {[%emt 0:00:15]} Ke6 {[%emt 0:00:15]} 29. Ke2 {[%emt 0:00:16]} c5 {[%emt 0:02:38]} (29... Ke5 $1 $14) 30. Kd3 {[%emt 0:01:12]} (30. g4 $16) 30... Ke5 {[%emt 0:01:15]} 31. g3 {[%emt 0:04:34]} h5 {[%emt 0:00:14]} 32. Ke3 {[%emt 0:00:36]} g4 {[%emt 0:00:50]} 33. f4+ {[%emt 0:04:15]} gxf3 {[%emt 0:00:21]} 34. Kxf3 {[%emt 0:00:03]} d4 {[%emt 0:00:34]} 35. c4 {[%emt 0:01:41]} Ra8 {[%emt 0:00:34]} 36. a5 {[%emt 0:00:17][%cal Ba4a5,Ba5a6][%mdl 32] [#] Black must now prevent a6.} Rf8+ $2 {[%emt 0:00:24][%mdl 8192]} (36... Ra6 $16 {is a better chance.} 37. g4 hxg4+ 38. hxg4 Rf6+ 39. Ke2 Ra6) 37. Ke2 $18 {[%emt 0:00:23] Strongly threatening a6.} Kd6 {[%emt 0:00:35]} 38. a6 {[%emt 0:00:37] Weighted Error Value: White=0.11 (very precise) /Black=0.40} 1-0

[Event "3rd elllobregat Open 2022"]
[Site "Baix Llobregat"]
[Date "2022.11.30"]
[Round "1.9"]
[White "Safarli, Eltaj"]
[Black "Priyanka Nutakki"]
[Result "1-0"]
[ECO "C07"]
[WhiteElo "2616"]
[BlackElo "2320"]
[Annotator "TA"]
[PlyCount "63"]
[EventDate "2022.11.30"]
[EventType "swiss"]
[EventCountry "ESP"]
[SourceTitle "playchess.com"]
[Source "ChessBase"]
[SourceQuality "1"]
[TimeControl "40/5400+30:1800+30"]

{[%evp 9,63,18,29,0,0,0,0,0,0,0,0,-7,0,-19,0,0,6,-4,0,0,0,0,0,0,0,-12,0,0,0,0,0,-5,0,-44,-66,-65,-50,-65,0,-56,0,0,78,70,513,483,475,37,66,0,29983,29984,29988,29966,1920,1500]} 1. e4 {[%emt 0:00:08]} e6 {[%emt 0:00:07]} 2. d4 {[%emt 0:00:23]} d5 {[%emt 0:00:10]} 3. Nd2 {[%emt 0:00:10]} c5 {[%emt 0:00:08]} 4. exd5 {[%emt 0:01:14]} Qxd5 {[%emt 0:00:07]} 5. Ngf3 {[%emt 0:00:07]} cxd4 {[%emt 0:00:05]} 6. g3 {[%emt 0:00:33] C07: French Tarrasch: 3...c5, 4 Ngf3 and 4 exd5 Qxd5.} (6. Bc4 $5 {[%cal Rc4d5]} Qd6 7. O-O $11) 6... Nc6 {[%emt 0:01:01]} 7. Bg2 {[%emt 0:00:17]} Qb5 {[%emt 0:16:51]} 8. a4 {[%emt 0:00:11] The position is equal.} Qa6 {[%emt 0:00:12]} 9. Bf1 $1 {[%emt 0:00:07] [#]} Qb6 $146 {[%emt 0:04:03]} ({Predecessor:} 9... Qa5 10. Bb5 Bd7 11. O-O a6 12. Nc4 Qd8 13. Bxc6 Bxc6 14. Nce5 Bxf3 15. Qxf3 Qc7 {0-1 (58) Orujov,F (2352)-Ozkan,T (2299) Nakhchivan 2022}) 10. Nc4 {[%emt 0:00:25]} Qd8 {[%emt 0:06:09][%cal Oe6e5]} 11. Bg2 $1 {[%emt 0:01:01]} Nf6 {[%emt 0:02:23]} 12. O-O {[%emt 0:00:37]} Bc5 {[%emt 0:02:35]} 13. Qe2 {[%emt 0:08:45]} O-O {[%emt 0:01:04]} 14. Rd1 {[%emt 0:00:16]} Qe7 {[%emt 0:03:09][%cal Oe6e5]} 15. Nce5 {[%emt 0:20:20]} Nxe5 {[%emt 0:02:37]} 16. Nxe5 {[%emt 0:00:06]} Rd8 {[%emt 0:05:20]} 17. a5 {[%emt 0:04:17]} a6 {[%emt 0:03:36]} 18. Bg5 {[%emt 0:12:24]} h6 {[%emt 0:01:02]} 19. Bxf6 {[%emt 0:00:37]} Qxf6 {[%emt 0:03:39]} 20. Rd3 {[%emt 0:00:31]} Qe7 {[%emt 0:01:17]} 21. Qh5 {[%emt 0:06:03][%cal Oe5f7]} (21. c3 $5) 21... f6 {[%emt 0:05:53]} 22. Ng6 {[%emt 0:07:20]} Qc7 {[%emt 0:00:17]} 23. Nf4 {[%emt 0:01:47]} Bf8 {[%emt 0:08:11]} (23... Ba7 $1 $15) 24. Rad1 {[%emt 0:05:50]} (24. c3 $11) 24... g5 {[%emt 0:03:27]} (24... Qxc2 25. Qg6 Qc5 26. Be4 $16) (24... Qc5 $15 25. Qxc5 Bxc5) 25. Ng6 $36 {[%emt 0:05:08][%mdl 2048] White is more active.} (25. Rxd4 $2 Rxd4 26. Rxd4 gxf4 $19) 25... Bc5 {[%emt 0:07:02] [#]} (25... Bg7 $11 {keeps the balance.}) 26. h4 $1 $16 {[%emt 0:04:02] Hoping for hxg5.} ({Don't play} 26. Qxh6 $6 Qg7 27. Qh5 Bd7 $15) 26... Kg7 $2 {[%emt 0:03:30][%mdl 8192]} (26... Qg7 $14) 27. hxg5 $18 {[%emt 0:02:33]} hxg5 {[%emt 0:00:34] Threatens to win with ...Qf7.} 28. b4 $2 {[%emt 0:01:11]} ({White must play} 28. f4 $18 g4 29. Qxg4 (29. Nh4 Kg8 $18)) 28... Ba7 $14 {[%emt 0:00:51] ...Qf7 is the strong threat.} 29. Be4 {[%emt 0:01:21] White is much more active.} ({Better is} 29. f4 $14 Qf7 30. fxg5 (30. Be4 $2 f5 $19) 30... Qxg6 31. gxf6+ Kf7 32. Qh1) 29... f5 $2 {[%emt 0:02:12][%mdl 8192] [#]} (29... Qf7 $11 30. Qh1 f5) 30. Qxg5 $1 {[%emt 0:00:31]} fxe4 {[%emt 0:00:38]} (30... Kf7 31. Bf3) 31. Ne5+ {[%emt 0:00:25]} Kf8 {[%emt 0:00:24] [#]} 32. Rc3 $3 {[%emt 0:01:28][%mdl 576] Pin.   Weighted Error Value: White=0.28 (precise) /Black=0.51} 1-0

[Event "3rd elllobregat Open 2022"]
[Site "Baix Llobregat"]
[Date "2022.11.30"]
[Round "1.10"]
[White "Cesar Maestre, Bernardo"]
[Black "Bluebaum, Matthias"]
[Result "0-1"]
[ECO "D45"]
[WhiteElo "2344"]
[BlackElo "2651"]
[Annotator "TA"]
[PlyCount "138"]
[EventDate "2022.11.30"]
[EventType "swiss"]
[EventCountry "ESP"]
[SourceTitle "playchess.com"]
[Source "ChessBase"]
[SourceQuality "1"]
[TimeControl "40/5400+30:1800+30"]

{[%evp 23,138,-10,-19,-12,81,-26,0,-13,103,105,92,90,152,-14,-20,-24,-10,-6,0,-37,0,0,0,0,0,0,0,0,0,0,0,-11,-15,-20,-14,-20,-14,-45,-35,-36,-36,-37,-34,-88,-35,-40,-43,-77,-42,-44,-49,-51,-25,-71,-86,-99,-75,-111,-16,-133,-80,-100,-85,-157,-157,-298,-266,-268,-264,-266,-151,-157,-157,-183,-183,-183,-183,-189,-191,-208,-208,-454,-335,-294,-208,-1268,-1103,-1656,-1652,-1566,-1530,-1458,-1384,-1372,-1167,-6552,-1238,-978,0,-6307,-6479,-6323,-6175,-5070,-4827,-10171,-6303,-6093,-6093,-29977,-29978,-29982,-29983,-29986,-29987,-29987,-29982]} 1. e4 {[%emt 0:00:04]} c6 {[%emt 0:00:14]} 2. d4 {[%emt 0:00:07]} d5 {[%emt 0:00:05]} 3. Nc3 {[%emt 0:01:25]} dxe4 {[%emt 0:01:56]} 4. Nxe4 {[%emt 0:00:00]} Nd7 {[%emt 0:06:40]} 5. Nf3 {[%emt 0:04:34]} Ngf6 {[%emt 0:04:19]} 6. Ng3 {[%emt 0:00:38]} e6 {[%emt 0:01:28]} 7. Be2 {[%emt 0:03:00]} Be7 {[%emt 0:00:00]} 8. O-O {[%emt 0:00:00]} O-O {[%emt 0:00:00]} 9. c4 {[%emt 0:00:05]} Qc7 {[%emt 0:03:40]} 10. b3 {[%emt 0:04:03]} b6 {[%emt 0:00:00]} 11. Bb2 {[%emt 0:00:00]} Bb7 {[%emt 0:00:00]} 12. Qc2 {[%emt 0:00:00]} c5 {[%emt 0:06:18]} 13. Rad1 {[%emt 0:04:10][%cal Od4d5] D45: Semi-Slav: 5 e3.} Rfd8 {[%emt 0:16:03]} (13... cxd4 $11 14. Nxd4 Rac8) 14. Rd2 {[%emt 0:04:59] [#]} (14. d5 $1 $16) 14... Nf8 $146 {[%emt 0:10:36]} ({Predecessor:} 14... Rac8 15. Rfd1 {½-½ (16) Dobos,J (2273)-Dudas,E (2154) Hungary 2015}) 15. dxc5 {[%emt 0:12:02] The position is equal.} (15. Rfd1 $5 {[%cal Rd4d5]}) 15... Bxc5 {[%emt 0:11:07]} (15... Qxc5 $11 16. Rfd1 Rxd2 17. Rxd2 Qc7) 16. Bxf6 $1 $16 {[%emt 0:17:52]} gxf6 {[%emt 0:00:08]} 17. Nh5 $1 {[%emt 0:00:46]} Be7 {[%emt 0:03:15] [#]} (17... Ng6 $142) 18. Rxd8 $2 {[%emt 0:05:24]} ({Only move:} 18. Qc1 $1 $16 {And now Rxd8 would win.} f5 19. Rxd8 Bxd8 20. Rd1) 18... Rxd8 $11 {[%emt 0:00:00]} 19. Qc3 {[%emt 0:08:57]} Nd7 {[%emt 0:05:59]} (19... Bxf3 {simplifies} 20. Bxf3 Qe5 21. Qxe5 fxe5 22. Rd1 Rxd1+ 23. Bxd1 f5) 20. Rd1 {[%emt 0:06:15]} Qc5 {[%emt 0:00:00]} 21. Ng3 {[%emt 0:09:45]} Ne5 {[%emt 0:00:00]} (21... Qa5 {simplifies} 22. Qb2 Bxf3 23. Bxf3 Ne5) 22. Rxd8+ {[%emt 0:00:00]} Bxd8 {[%emt 0:00:00][%cal Be7d8,Bd8c7,Bc7b8][%mdl 32]} 23. Nxe5 {[%emt 0:00:00]} Qxe5 {[%emt 0:00:00]} 24. Qd2 {[%emt 0:00:00]} Bc7 {[%emt 0:02:29]} 25. Qd7 {[%emt 0:00:00] Against Bc6. Strongly threatening Qe8+.} Qd6 $40 {[%emt 0:00:00][%mdl 128] Black mounts an attack.} 26. Qe8+ {[%emt 0:00:00]} Qf8 {[%emt 0:00:00]} 27. Qd7 {[%emt 0:01:00]} Qd8 {[%emt 0:06:45]} 28. Qa4 {[%emt 0:05:31]} Bb8 {[%emt 0:03:53]} 29. Qb5 {[%emt 0:06:21]} a6 {[%emt 0:00:00]} (29... Bd6 {is interesting.} 30. Qh5 Be5 31. Bf3 Bxf3 32. Qxf3 Qd2) 30. Qa4 {[%emt 0:02:40][%cal Oc4c5]} (30. Qh5 {seems wilder.} Qd4 31. Bf3 Bc8 32. Be4) 30... f5 {[%emt 0:01:21]} 31. Bf3 {[%emt 0:03:36]} Bxf3 {[%emt 0:01:16]} 32. gxf3 $15 {[%emt 0:00:00][%mdl 4096] Endgame KQB-KQN} a5 {[%emt 0:00:10]} 33. Qa3 {[%emt 0:03:52]} (33. Kg2 $15) 33... h5 {[%emt 0:06:06]} (33... h6 $17 34. Qb2 Bc7) 34. Qc1 $1 {[%emt 0:00:00]} h4 {[%emt 0:00:00]} 35. Nf1 {[%emt 0:00:00]} Kh7 {[%emt 0:00:52]} 36. h3 $1 {[%emt 0:00:00]} Bd6 {[%emt 0:02:16]} 37. Qd2 {[%emt 0:00:00]} Qe7 {[%emt 0:02:12]} 38. Qe3 {[%emt 0:00:00]} (38. f4 $11 {is superior.}) 38... Bc5 $17 {[%emt 0:00:00]} 39. Qf4 {[%emt 0:02:46]} Qf6 {[%emt 0:00:18]} 40. Qd2 {[%emt 0:03:33]} Kg6 {[%emt 0:02:04]} ({Better is} 40... Qg6+ $17 41. Kh2 Qg8) 41. Qe2 {[%emt 0:05:32]} (41. f4 $1 $11 {keeps the balance.}) 41... Qc3 {[%emt 0:01:12]} ({Black should try} 41... Qd4 42. Kg2 Qf4) 42. Kg2 {[%emt 0:00:00]} Kf6 {[%emt 0:07:57]} 43. Qd1 {[%emt 0:00:54]} (43. f4 $142) 43... Ke7 {[%emt 0:03:07]} 44. Qd2 {[%emt 0:05:00]} (44. Qe2 $17) 44... Qg7+ {[%emt 0:00:00]} 45. Kh1 {[%emt 0:03:51]} Qd4 {[%emt 0:01:29]} 46. Kg2 {[%emt 0:00:00] [#]} Kd6 {[%emt 0:02:58]} (46... Qxd2 $1 $19 47. Nxd2 Bb4) 47. Qc2 {[%emt 0:01:49]} Kc6 {[%emt 0:00:46]} 48. Qe2 {[%emt 0:00:00]} Qg7+ {[%emt 0:01:34]} 49. Kh1 {[%emt 0:00:00]} Qc3 {[%emt 0:00:11]} 50. Kg2 {[%emt 0:00:00]} Bd6 {[%emt 0:08:27]} 51. c5 {[%emt 0:01:21]} Bxc5 {[%emt 0:00:00]} 52. Qa6 $2 {[%emt 0:05:28]} (52. Kg1 {was worth a try.}) 52... Qg7+ {[%emt 0:00:00]} 53. Kh1 {[%emt 0:00:12]} Qh8 {[%emt 0:01:23] Inhibits Qc8+. Active counter play!} 54. Ne3 $2 {[%emt 0:01:35]} (54. Qe2) 54... Bxe3 $19 {[%emt 0:00:17]} 55. fxe3 {[%emt 0:00:36] KQ-KQ} Qa1+ {[%emt 0:00:00]} 56. Kg2 {[%emt 0:00:08]} Qxa2+ {[%emt 0:00:00]} 57. Kg1 {[%emt 0:00:24]} Qb1+ {[%emt 0:00:00]} 58. Kf2 {[%emt 0:00:57]} Qc2+ {[%emt 0:00:00]} 59. Kf1 {[%emt 0:01:49]} Qd1+ {[%emt 0:00:59]} (59... Qxb3 $142 60. Qc8+ Kb5 61. Qd7+ Kb4 62. Qd2+ Qc3 63. Qd6+ Kb5 64. Qd7+ Qc6) 60. Kf2 {[%emt 0:02:44]} Qc2+ {[%emt 0:01:41]} (60... Qd2+ $142 61. Kf1 Qxe3 62. Qc4+ Qc5 63. Qxh4 Qb5+ 64. Ke1 Qxb3) 61. Kf1 $1 {[%emt 0:00:00] aiming for Qc8+.} Qxb3 {[%emt 0:02:55]} 62. Qc8+ {[%emt 0:00:00]} Kb5 {[%emt 0:00:02]} 63. Qd7+ {[%emt 0:00:00]} Kb4 {[%emt 0:00:03]} 64. Qd6+ {[%emt 0:00:00]} Kc3 {[%emt 0:01:02]} 65. Qd4+ {[%emt 0:00:00]} Kc2 {[%emt 0:00:01] ( -> ...Qd3+)} 66. Qxh4 {[%emt 0:00:00]} a4 {[%emt 0:01:21] Black mates.} 67. Qf2+ {[%emt 0:00:00]} Kc1 {[%emt 0:01:01]} 68. h4 {[%emt 0:00:54]} Qd1+ {[%emt 0:00:34]} 69. Kg2 {[%emt 0:00:52]} Qc2 {[%emt 0:00:11] Weighted Error Value: White=0.56/Black=0.57} 0-1